[Event "SixDays Budapest May IM 2023"]
[Site "Budapest"]
[Date "2023.05.28"]
[Round "2.4"]
[White "Ojas Kulkarni"]
[Black "Arvind Ramnath Iyer"]
[Result "1-0"]
[Annotator "TA"]
[ECO "A48"]
[WhiteElo "2230"]
[BlackElo "1883"]
[PlyCount "53"]
[EventDate "2023.05.25"]
[EventType "tourn"]
[EventCountry "HUN"]
[SourceTitle "playchess.com"]
[Source "ChessBase"]
[SourceQuality "1"]
[TimeControl "5400+30"]

{[%evp 13,53,0,4,0,17,5,-8,-8,0,0,25,25,53,43,76,31,37,33,53,31,33,-54,48,46,65,-18,-25,-133,-138,-138,-136,-273,-38,-48,-62,-33,239,243,509,509,855,778]} 1. d4 {[%emt 0:00:34]} Nf6 {[%emt 0:00:56]} 2. Nf3 {[%emt 0:00:09]} g6 {[%emt 0:00:31]} 3. Bf4 {[%emt 0:00:20]} d6 {[%emt 0:02:07]} 4. e3 {[%emt 0:00:32]} Bg7 {[%emt 0:00:31]} 5. h3 {[%emt 0:00:10]} O-O {[%emt 0:00:10]} 6. Be2 {[%emt 0:00:04]} Nbd7 {[%emt 0:01:30]} 7. O-O {[%emt 0:00:36]} b6 {[%emt 0:00:19]} 8. a4 {[%emt 0:00:08][%cal Ba2a4,Ba4a5][%mdl 32] A48: 1 d4 Nf6 2 Nf3 g6: Torre, London and Colle Systems.} a6 {[%emt 0:00:08] outshines the older 8...a5.} 9. a5 {[%emt 0:00:44]} b5 {[%emt 0:07:39]} 10. c4 {[%emt 0:00:16] The position is equal.} bxc4 {[%emt 0:00:11]} 11. Bxc4 {[%emt 0:00:10]} Bb7 {[%emt 0:00:29]} 12. Nc3 {[%emt 0:02:40] [#]} Nh5 $146 {[%emt 0:08:13]} ({Predecessor:} 12... c5 13. d5 Qc7 14. e4 Rab8 15. Re1 Bc8 16. Qc2 Nh5 17. Bh2 Rb4 18. b3 Nhf6 {1-0 Anton Guijarro,D (2691)-Assaubayeva,B (2434) Chess.com Rapid Wk2 Swiss 2022 (3)}) 13. Bh2 {[%emt 0:09:06]} e5 {[%emt 0:01:47]} 14. e4 {[%emt 0:01:22] White is more active.} (14. dxe5 $5 {[%cal Rg2g4]} Bxf3 15. Qxf3 Bxe5 16. Bxe5 Nxe5 17. Qe2 $14) 14... exd4 {[%emt 0:07:28]} 15. Nxd4 {[%emt 0:01:18]} Nc5 {[%emt 0:05:36]} 16. f3 {[%emt 0:23:51]} (16. Bd5 {simplifies} Re8 17. Bxb7 Nxb7 18. Re1) 16... Qg5 {[%emt 0:05:17] White must now prevent ...Qe3+.} 17. Nde2 {[%emt 0:04:48]} (17. Nce2 $14) 17... Bc8 {[%emt 0:04:43]} ({Better is} 17... Nxe4 $1 $15 18. Nxe4 Bxe4 {[%mdl 64] Remove Defender}) 18. Kh1 $14 {[%emt 0:11:39]} Rb8 {[%emt 0:04:22]} 19. Nd5 {[%emt 0:09:43]} ({Much worse is} 19. f4 Qh4 $15) ({White should play} 19. Rb1 $1 $14) 19... Rxb2 $11 {[%emt 0:08:03]} 20. Rc1 {[%emt 0:10:34] [#]} (20. Rb1 $11 {remains equal.}) 20... Be6 $1 $17 {[%emt 0:02:31]} ({Don't do} 20... Rd2 21. h4 Qh6 22. Qe1 Rxd5 23. exd5 $16 (23. Bxd5 Nd3 $11)) 21. Rc2 {[%emt 0:07:05] [#]} Rfb8 {[%emt 0:01:19]} 22. f4 {[%emt 0:05:00]} (22. g4 $17) 22... Qd8 $2 {[%emt 0:02:39]} ({Black should try} 22... Qh4 $19 23. e5 Ne4) 23. Rxb2 $15 {[%emt 0:00:18]} Rxb2 {[%emt 0:00:04]} 24. f5 {[%emt 0:00:08][%cal Bf4f5,Bf5g6][%mdl 32]} Bxd5 {[%emt 0:04:42][%mdl 8192]} (24... gxf5 $15 {keeps the upper hand.} 25. exf5 Bxd5 26. Bxd5 Qg5) 25. Qxd5 $18 {[%emt 0:00:20]} Qf6 {[%emt 0:02:35]} (25... Qe8) 26. e5 {[%emt 0:02:21]} Qe7 {[%emt 0:01:52]} (26... dxe5 $142 27. Qxc5 Qd6 28. Qxd6 cxd6 29. fxg6 hxg6 30. Rxf7 Kh8) 27. fxg6 {[%emt 0:00:59] Weighted Error Value: White=0.37/Black=0.74} 1-0

[Event "SixDays Budapest May IM 2023"]
[Site "Budapest"]
[Date "2023.05.28"]
[Round "2.5"]
[White "Dudognon, Thibault"]
[Black "To, Nhat Minh"]
[Result "1/2-1/2"]
[Annotator "TA"]
[ECO "C07"]
[WhiteElo "2325"]
[BlackElo "2359"]
[PlyCount "44"]
[EventDate "2023.05.25"]
[EventType "tourn"]
[EventCountry "HUN"]
[SourceTitle "playchess.com"]
[Source "ChessBase"]
[SourceQuality "1"]
[TimeControl "5400+30"]

{[%evp 20,31,0,0,0,0,14,0,0,0,0,-19,-17,-16]} 1. e4 {[%emt 0:03:59]} e6 {[%emt 0:00:33]} 2. d4 {[%emt 0:00:48]} d5 {[%emt 0:00:03]} 3. Nd2 {[%emt 0:00:04]} c5 {[%emt 0:00:03]} 4. exd5 {[%emt 0:00:07]} Qxd5 {[%emt 0:00:03]} 5. Ngf3 {[%emt 0:00:09]} cxd4 {[%emt 0:00:05]} 6. Bc4 {[%emt 0:00:12]} Qd6 {[%emt 0:00:04]} 7. O-O {[%emt 0:00:06]} Nf6 {[%emt 0:00:02]} 8. Nb3 {[%emt 0:00:23]} Nc6 {[%emt 0:00:06]} 9. Nbxd4 {[%emt 0:01:58]} Nxd4 {[%emt 0:00:05]} 10. Qxd4 {[%emt 0:00:19]} Qxd4 {[%emt 0:00:04]} 11. Nxd4 {[%emt 0:00:07] The position is equal.} Bc5 {[%emt 0:04:18] C07: French Tarrasch: 3...c5, 4 Ngf3 and 4 exd5 Qxd5.} 12. Nb3 {[%emt 0:01:21]} Bb6 {[%emt 0:00:10]} 13. Be2 {[%emt 0:01:40][%cal Bc4e2,Be2f3,Bf3c6][%mdl 32]} Bd7 {[%emt 0:00:09]} 14. Bf3 {[%emt 0:00:14] seems to push 14.a4 aside.} Rc8 {[%emt 0:00:10]} 15. c3 {[%emt 0:02:04]} Bc6 {[%emt 0:00:04]} 16. Bxc6+ {[%emt 0:01:31] [#] An uneventful encounter.   Weighted Error Value: White=0.08 (flawless) /Black=0.00 (flawless)} {Predecessor:} Rxc6 $146 17. Bg5 Nd5 18. Rad1 f6 19. Bc1 Kf7 20. Nd4 Bxd4 21. Rxd4 b5 22. Rfd1 Rhc8 {0-1 Blanco Ronquillo,H (2442)-Grischuk,A (2745) Titled Tuesday intern op 26th Jul Late blitz 2022 (2)} 1/2-1/2

[Event "SixDays Budapest May IM 2023"]
[Site "Budapest"]
[Date "2023.05.28"]
[Round "3.1"]
[White "To, Nhat Minh"]
[Black "Szeberenyi, Adam"]
[Result "1/2-1/2"]
[Annotator "TA"]
[ECO "A01"]
[WhiteElo "2359"]
[BlackElo "2338"]
[PlyCount "30"]
[EventDate "2023.05.25"]
[EventType "tourn"]
[EventCountry "HUN"]
[SourceTitle "playchess.com"]
[Source "ChessBase"]
[SourceQuality "1"]
[TimeControl "5400+30"]

{[%evp 11,17,-8,2,0,0,0,3,-25]} 1. b3 {[%emt 0:00:32]} e5 {[%emt 0:00:36]} 2. Bb2 {[%emt 0:00:04]} Nc6 {[%emt 0:00:06]} 3. c4 {[%emt 0:00:04]} Nf6 {[%emt 0:00:07]} 4. e3 {[%emt 0:00:07]} d5 {[%emt 0:00:24]} 5. cxd5 {[%emt 0:00:04]} Nxd5 {[%emt 0:00:07]} 6. a3 {[%emt 0:00:05]} Bd6 {[%emt 0:00:19] The position is equal.} 7. d3 {is the new trend. A01: Nimzowitsch-Larsen Opening.} O-O {[%emt 0:00:08]} 8. Nf3 {[%emt 0:00:12]} Qe7 {[%emt 0:00:10]} 9. Nbd2 {[%emt 0:00:18] [#] Not much happened in this game.   Weighted Error Value: White=0.00 (flawless) /Black=0.04 (flawless) 9.Be2 is not played anymore.} {Predecessor:} f5 $146 10. b4 Kh8 11. Nc4 b5 12. Nxd6 cxd6 13. Be2 Bb7 14. O-O Nd8 15. Re1 Ne6 {1-0 Artemiev,V (2706)-Kramnik,V (2753) Krasnogorsk Crocus Rapid 2022 (7)} 1/2-1/2

[Event "SixDays Budapest May IM 2023"]
[Site "Budapest"]
[Date "2023.05.28"]
[Round "3.2"]
[White "Arvind Ramnath Iyer"]
[Black "Dudognon, Thibault"]
[Result "0-1"]
[Annotator "TA"]
[ECO "B56"]
[WhiteElo "1883"]
[BlackElo "2325"]
[PlyCount "102"]
[EventDate "2023.05.25"]
[EventType "tourn"]
[EventCountry "HUN"]
[SourceTitle "playchess.com"]
[Source "ChessBase"]
[SourceQuality "1"]
[TimeControl "5400+30"]

{[%evp 10,102,40,52,45,8,22,8,9,-23,-25,-21,-22,-41,-36,-26,-22,-16,-18,-35,-35,-39,-39,-39,-40,-43,-46,-74,-49,-58,-58,-82,-58,-76,-62,-72,-46,-57,-41,-47,-27,-19,0,0,0,3,28,0,0,0,6,0,0,0,0,-8,0,-12,-15,-33,-32,-30,-27,-58,-13,-54,-54,-85,-68,-130,-122,-624,-592,-560,-707,-788,-746,-722,-638,-589,-387,-611,-595,-610,-593,-582,-551,-952,-951,-939,-686,-1145,-1081,-1019,-726]} 1. e4 {[%emt 0:00:33]} c5 {[%emt 0:00:34]} 2. Nf3 {[%emt 0:00:05]} d6 {[%emt 0:00:04]} 3. d4 {[%emt 0:00:04]} cxd4 {[%emt 0:00:03]} 4. Nxd4 {[%emt 0:00:08]} Nf6 {[%emt 0:00:04]} 5. Nc3 {[%emt 0:00:08]} Bd7 {[%emt 0:00:04]} 6. Be2 {[%emt 0:01:22]} e5 {[%emt 0:00:10] B56: Classical Sicilian: Unusual Lines.} 7. Nf3 {[%emt 0:00:22]} Bc6 {[%emt 0:00:12]} 8. Bg5 {[%emt 0:00:56]} Nbd7 {[%emt 0:00:57] [#] The position is equal.} 9. Nd5 $146 {[%emt 0:05:26] Inhibits Qb6.} ({Predecessor:} 9. O-O Be7 10. Bxf6 Nxf6 11. Nd2 O-O 12. Bf3 b5 13. a3 a5 14. Ne2 d5 15. exd5 Bxd5 {1-0 Lintchevski,D (2553)-Dragicevic,D (2300) EU-ch blitz Tallinn 2019 (9)}) 9... Bxd5 {[%emt 0:03:47]} 10. exd5 {[%emt 0:00:03]} Qa5+ {[%emt 0:04:47]} 11. c3 {[%emt 0:03:06]} Qxd5 {[%emt 0:00:54]} 12. Qa4 {[%emt 0:01:30]} Qc6 {[%emt 0:03:52]} 13. Bb5 {[%emt 0:09:29]} Qe4+ {[%emt 0:00:17]} 14. Kf1 {[%emt 0:00:16] [#] Bxd7+ would be deadly.} Qxa4 {[%emt 0:00:44]} 15. Bxa4 {[%emt 0:00:01]} Be7 {[%emt 0:04:05]} 16. Rd1 {[%emt 0:01:53][%cal Of3e5]} Kf8 {[%emt 0:17:48]} 17. Bxf6 {[%emt 0:21:05]} Nxf6 {[%emt 0:00:13]} 18. Bb3 {[%emt 0:00:06]} h6 {[%emt 0:03:16]} 19. Ke2 {[%emt 0:02:23]} g6 {[%emt 0:08:23]} 20. Rd2 {[%emt 0:01:24]} Kg7 {[%emt 0:01:52]} 21. Rhd1 {[%emt 0:00:38]} Rhd8 {[%emt 0:00:58]} 22. Ne1 {[%emt 0:03:22][%cal Bf3e1,Be1c2,Bc2b4,Bb4d5][%mdl 32]} Ne8 {[%emt 0:16:53]} 23. Nc2 {[%emt 0:02:33]} a6 {[%emt 0:01:59]} 24. Nb4 {[%emt 0:03:57]} Bg5 {[%emt 0:01:31]} 25. Rd3 {[%emt 0:00:20]} e4 {[%emt 0:03:28]} 26. Rd4 {[%emt 0:00:58]} f5 {[%emt 0:00:02]} 27. Nd5 {[%emt 0:00:26]} b5 {[%emt 0:00:45]} 28. a4 {[%emt 0:04:22]} Bf6 {[%emt 0:02:13]} 29. R4d2 {[%emt 0:00:16]} Rdb8 {[%emt 0:02:11]} 30. axb5 {[%emt 0:03:45]} axb5 {[%emt 0:00:39]} 31. Nb4 {[%emt 0:00:49]} Rc8 {[%emt 0:04:51]} 32. Bd5 {[%emt 0:00:50] Hoping for Bb7.} Ra7 {[%emt 0:01:39] Against Bb7} 33. Bc6 {[%emt 0:00:13]} Be5 {[%emt 0:01:06]} 34. Bxe8 {[%emt 0:00:39]} Rxe8 {[%emt 0:00:04]} 35. Nc6 {[%emt 0:00:10]} Ra2 {[%emt 0:01:14]} 36. Nxe5 {[%emt 0:00:13]} Rxe5 $11 {[%emt 0:00:21][%mdl 4096] Endgame KRR-KRR} 37. Ke3 {[%emt 0:02:36] [#]} (37. b4 $5 {[%cal Rd2a2]} Rxd2+ 38. Rxd2 $11) 37... d5 $1 {[%emt 0:04:00]} 38. Kd4 {[%emt 0:01:13]} (38. Rxd5 Rxd5) 38... Kf6 {[%emt 0:00:04]} 39. Kc5 {[%emt 0:00:26]} (39. g3 $15) 39... f4 $17 {[%emt 0:01:45]} 40. Rxd5 $2 {[%emt 0:03:34][%mdl 8192] Now White is beyond hope.} (40. Kb4 $17) 40... Rxb2 $19 {[%emt 0:00:35]} 41. Rxe5 {[%emt 0:01:52]} Kxe5 $17 {[%emt 0:00:06] KR-KR} 42. Rd5+ {[%emt 0:00:29]} Ke6 {[%emt 0:00:03]} 43. Rd6+ {[%emt 0:00:05]} Kf7 {[%emt 0:01:52]} 44. Rd7+ {[%emt 0:00:14]} Kf8 {[%emt 0:01:58]} 45. Rd8+ {[%emt 0:00:50]} (45. g3 $142 f3 46. Rd4) 45... Ke7 $19 {[%emt 0:01:10] Black is clearly winning.} 46. Rd4 {[%emt 0:00:12]} Rxf2 {[%emt 0:00:43] ...e3 is the strong threat.} 47. Rxe4+ {[%emt 0:00:07]} Kf6 {[%emt 0:00:08]} 48. g3 {[%emt 0:04:52]} fxg3 {[%emt 0:00:52]} ({Worse is} 48... Rxh2 49. Rxf4+ Ke5 50. Kxb5 $15) 49. hxg3 {[%emt 0:00:02]} Rf3 {[%emt 0:00:06][%csl LRc3,LRg3]} 50. g4 {[%emt 0:07:42]} Rxc3+ {[%emt 0:00:06]} 51. Kxb5 {[%emt 0:00:03]} Kg5 {[%emt 0:00:15] Weighted Error Value: White=0.51/Black=0.11 (very precise)} 0-1

[Event "SixDays Budapest May IM 2023"]
[Site "Budapest"]
[Date "2023.05.28"]
[Round "3.3"]
[White "Semprun Martinez, Fernando"]
[Black "Ojas Kulkarni"]
[Result "1/2-1/2"]
[Annotator "TA"]
[ECO "A61"]
[WhiteElo "2125"]
[BlackElo "2230"]
[PlyCount "36"]
[EventDate "2023.05.25"]
[EventType "tourn"]
[EventCountry "HUN"]
[SourceTitle "playchess.com"]
[Source "ChessBase"]
[SourceQuality "1"]
[TimeControl "5400+30"]

{[%evp 19,36,56,53,12,29,-7,58,48,61,56,94,88,93,86,111,107,166,115,120]} 1. d4 {[%emt 0:00:32] Krasenkow,Michal} Nf6 {[%emt 0:00:53]} 2. c4 {[%emt 0:00:02]} e6 {[%emt 0:00:12]} 3. Nf3 {[%emt 0:00:06]} c5 {[%emt 0:00:53]} 4. d5 {[%emt 0:01:17]} d6 {[%emt 0:00:12]} 5. Nc3 {[%emt 0:00:31]} exd5 {[%emt 0:00:07]} 6. cxd5 {[%emt 0:00:41]} g6 {[%emt 0:00:30]} 7. e4 {[%emt 0:02:54]} Bg7 {[%emt 0:03:41]} 8. h3 {[%emt 0:00:11]} O-O {[%emt 0:00:07]} 9. Bd3 {[%emt 0:00:03]} Nbd7 {[%emt 0:00:34]} 10. O-O {[%emt 0:01:59]} Nh5 {[%emt 0:00:16] has lost popularity (10...Re8).} 11. g4 {[%emt 0:02:16] A70: Modern Benoni: 6 e4 g6 7 Nf3.} Nhf6 {[%emt 0:01:17]} 12. Bf4 {[%emt 0:01:05]} Ne8 {[%emt 0:01:05]} ({Black should play} 12... h5 $11) 13. Qd2 $14 {[%emt 0:02:33] White is slightly better.} a6 {[%emt 0:01:45]} 14. a4 {[%emt 0:00:54] [#] White has more active pieces. The black rooks are badly placed.} Ne5 $146 {[%emt 0:07:35]} ({Predecessor:} 14... h5 15. gxh5 Ne5 16. Nxe5 dxe5 17. Bg5 f6 18. Be3 c4 19. Bxc4 Nd6 20. Qe2 f5 {0-1 Keymer,V (2516)-Vallejo Pons,F (2693) Grenke Chess Classic 6th 2019 (9)}) 15. Nxe5 {[%emt 0:02:12]} dxe5 {[%emt 0:00:07]} 16. Be3 {[%emt 0:09:44]} Qh4 {[%emt 0:13:07]} 17. f3 {[%emt 0:02:18]} ({Reject} 17. Bxc5 $6 Bxg4 18. hxg4 (18. Bxf8 Bxh3 19. Qe3 Bxf8 $17) 18... Qxg4+ 19. Kh2 Qh4+ 20. Kg2 Qg4+ 21. Kh2 Qh4+ 22. Kg2 Qg4+ 23. Kh2 $11) 17... f5 {[%emt 0:12:11]} (17... Qxh3 $16 {might work better.} 18. Bxc5 f5) 18. Qg2 {[%emt 0:03:37]} (18. Bxc5 $18 Qxh3 19. exf5) 18... Qe7 {[%emt 0:05:07] Weighted Error Value: White=0.17 (very precise) /Black=0.33} 1/2-1/2

[Event "SixDays Budapest May IM 2023"]
[Site "Budapest"]
[Date "2023.05.28"]
[Round "3.4"]
[White "Tancsa, Tamas"]
[Black "Manu David Suthandram R"]
[Result "1/2-1/2"]
[Annotator "TA"]
[ECO "B30"]
[WhiteElo "2188"]
[BlackElo "2332"]
[PlyCount "57"]
[EventDate "2023.05.25"]
[EventType "tourn"]
[EventCountry "HUN"]
[SourceTitle "playchess.com"]
[Source "ChessBase"]
[SourceQuality "1"]
[TimeControl "5400+30"]

{[%evp 23,57,16,14,21,35,0,13,0,0,-9,50,53,51,0,0,-15,-10,-43,-22,-114,-104,-106,-119,-122,-88,-98,-57,-116,-91,-191,-167,-182,-175,-293,-212,-270]} 1. e4 {[%emt 0:00:39] Postny,Evgeny} c5 {[%emt 0:08:54]} 2. Nf3 {[%emt 0:00:06]} Nc6 {[%emt 0:00:08]} 3. Bb5 {[%emt 0:00:04]} Nf6 {[%emt 0:00:07][%cal Bg8f6,Bf6d5,Bd5c7,Bc7e6][%mdl 32]} 4. e5 {[%emt 0:01:00]} Nd5 {[%emt 0:00:12]} 5. Nc3 {[%emt 0:00:05]} Nc7 {[%emt 0:10:02]} 6. Bxc6 {[%emt 0:00:07]} dxc6 {[%emt 0:02:47]} 7. O-O {[%emt 0:02:23]} g6 {[%emt 0:01:34]} 8. Ne4 {[%emt 0:00:06]} b6 {[%emt 0:07:09]} 9. Re1 {[%emt 0:00:40]} Ne6 {[%emt 0:03:24]} 10. d3 {[%emt 0:00:21]} Bg7 {[%emt 0:00:42]} 11. Be3 {[%emt 0:00:08]} O-O {[%emt 0:03:18]} 12. Qd2 {[%emt 0:00:53]} f5 {[%emt 0:18:58]} 13. exf6 {[%emt 0:08:34] B31: Sicilian: 2...Nc6 3 Bb5 g6.} exf6 {[%emt 0:00:09]} 14. c3 {[%emt 0:13:43] [#]} Qd5 $146 {[%emt 0:10:12]} ({Predecessor:} 14... Ba6 15. Rad1 Qc7 16. Bh6 Rad8 17. Bxg7 Kxg7 18. Qc2 Nf4 19. c4 Bc8 20. Re3 Bg4 {0-1 Timman,J (2578)-Van Wely,L (2617) Cogas Energie m 2004 (4)}) 15. Bh6 {[%emt 0:04:56] The position is equal.} g5 {[%emt 0:01:23]} 16. Bxg7 {[%emt 0:02:36]} Kxg7 {[%emt 0:02:13]} (16... Nxg7 $11 17. c4 Qf7) 17. Ng3 {[%emt 0:01:25]} Nf4 {[%emt 0:04:59]} 18. Re3 {[%emt 0:01:58]} (18. h4 $1 $14) 18... Bg4 $11 {[%emt 0:06:10][%cal Bc8g4,Bg4f3,Bf3g2,Bg2h3][%mdl 32]} 19. c4 {[%emt 0:01:17]} ({But not} 19. Re7+ Kg8 20. Ne1 Rae8 $15) 19... Qd7 {[%emt 0:02:03]} 20. h3 {[%emt 0:02:19]} (20. Rae1 {simplifies} Rae8 21. d4 cxd4 22. Nxd4 Rxe3 23. fxe3 Nh5 24. Ne4) 20... Bxf3 {[%emt 0:08:14]} 21. Re7+ {[%emt 0:01:08]} Qxe7 $17 {[%emt 0:00:04]} 22. Nf5+ {[%emt 0:00:12]} Kf7 {[%emt 0:00:03]} 23. Nxe7 {[%emt 0:00:06]} Bxg2 {[%emt 0:00:05]} 24. Re1 {[%emt 0:03:27]} Rad8 {[%emt 0:01:14]} 25. Re3 {[%emt 0:00:12]} (25. Nf5 $15 Rd7 26. Qc2) 25... Rd7 $36 {[%emt 0:04:01][%mdl 2048] Black is in control.} (25... Nxh3+ $2 26. Kxg2 Nf4+ 27. Kh2 $18) 26. Nf5 {[%emt 0:04:54]} (26. Qe1 $17 {keeps fighting.}) 26... Bxh3 $19 {[%emt 0:00:14]} (26... Nxh3+ $2 27. Kxg2 Nf4+ 28. Kg3 $18) 27. Ng3 {[%emt 0:01:22]} Rfd8 {[%emt 0:00:07][%cal Oh7h5] Threatens to win with ...h5!} 28. Qe1 {[%emt 0:01:38]} (28. Qd1 $142) 28... Ng2 {[%emt 0:02:13]} ({Weaker is} 28... Nxd3 29. Rxd3 Rxd3 30. Qe4 Rd1+ 31. Kh2 $17) 29. Qe2 {[%emt 0:01:33][%mdl 32768] An interesting game.   Weighted Error Value: White=0.44/Black=0.20 (precise) . An unexpected result.} 1/2-1/2

[Event "SixDays Budapest May IM 2023"]
[Site "Budapest"]
[Date "2023.05.28"]
[Round "3.5"]
[White "Nemeth, Zalan"]
[Black "Horvath, David"]
[Result "1/2-1/2"]
[Annotator "TA"]
[ECO "D10"]
[WhiteElo "2289"]
[BlackElo "2362"]
[PlyCount "89"]
[EventDate "2023.05.25"]
[EventType "tourn"]
[EventCountry "HUN"]
[SourceTitle "playchess.com"]
[Source "ChessBase"]
[SourceQuality "1"]
[TimeControl "5400+30"]

{[%evp 9,89,25,45,23,52,68,56,8,18,19,35,39,40,36,35,42,39,43,44,44,44,44,44,44,44,44,44,44,44,44,44,44,44,44,44,37,47,37,64,45,44,30,33,0,34,5,37,30,37,30,45,41,43,39,107,107,157,157,149,112,224,214,214,220,218,221,186,169,460,419,370,0,0,0,216,226,623,602,322,-66,-69,-247]} 1. d4 {[%emt 0:08:13]} d5 {[%emt 0:06:46]} 2. c4 {[%emt 0:00:39]} c6 {[%emt 0:00:03]} 3. g3 {[%emt 0:00:15]} Nf6 {[%emt 0:04:19]} 4. Nf3 {[%emt 0:00:10]} a6 {[%emt 0:12:24]} 5. Bg2 {[%emt 0:03:04]} Bf5 {[%emt 0:00:19]} 6. Qb3 {[%emt 0:00:48] D11: Slav Defence: 3 Nf3 sidelines and 3...Nf6 4 e3 Bg4.} Ra7 {[%emt 0:00:57]} 7. Nc3 {[%emt 0:02:29]} e6 {[%emt 0:00:06]} 8. c5 {[%emt 0:01:13]} (8. O-O $14) 8... Nbd7 {[%emt 0:01:23][%cal Bb8d7,Bd7f8,Bf8e6][%mdl 32] [#]} 9. Nh4 $146 {[%emt 0:07:16]} ({Predecessor:} 9. Bf4 Nh5 10. Bd2 Be7 11. h3 Nhf6 12. g4 Bg6 13. Nh4 Ne4 14. Bxe4 Bxe4 15. Nxe4 dxe4 {0-1 Palma,L (1809)-Pangilinan,S (2060) PHI-ch U12 San Antonio 2014 (6)}) 9... Be7 {[%emt 0:03:25]} 10. Nxf5 {[%emt 0:00:47]} exf5 {[%emt 0:00:04]} 11. Qc2 {[%emt 0:01:04]} g6 $1 {[%emt 0:00:32]} 12. Bh6 {[%emt 0:02:40]} Nf8 {[%emt 0:13:18]} 13. Bg7 {[%emt 0:06:38]} Rg8 {[%emt 0:00:04]} 14. Bxf6 {[%emt 0:00:08]} Bxf6 {[%emt 0:00:08]} 15. e3 {[%emt 0:03:31]} Ne6 {[%emt 0:01:36]} 16. b4 {[%emt 0:04:39]} h5 {[%emt 0:01:59]} 17. h4 {[%emt 0:00:37]} Qe7 {[%emt 0:04:49]} 18. Kf1 {[%emt 0:15:51]} Kf8 {[%emt 0:03:07]} 19. Bf3 {[%emt 0:02:28]} Kg7 {[%emt 0:10:15]} 20. Kg2 {[%emt 0:00:10]} Raa8 {[%emt 0:06:36]} 21. a4 {[%emt 0:00:54]} Qd7 {[%emt 0:04:29]} 22. Ra2 {[%emt 0:02:22]} Bd8 {[%emt 0:02:09] [#]} 23. b5 $1 {[%emt 0:01:09]} Ba5 {[%emt 0:06:07]} (23... Bf6 24. bxc6) 24. bxc6 {[%emt 0:01:19]} bxc6 {[%emt 0:00:10]} 25. Rb2 {[%emt 0:00:04]} Bc7 {[%emt 0:03:48]} 26. Qd3 {[%emt 0:00:54][%cal Oa4a5]} a5 {[%emt 0:02:15][%cal Of5f4]} (26... f4 $5) 27. Rhb1 {[%emt 0:00:10]} Rgc8 {[%emt 0:05:14][%cal Of5f4]} (27... f4 $5) 28. Qd2 {[%emt 0:01:20]} Kg8 {[%emt 0:01:59]} 29. Be2 {[%emt 0:01:44]} Ng7 {[%emt 0:01:16]} 30. Bd3 {[%emt 0:01:17]} Ne8 {[%emt 0:00:44]} 31. Qe2 {[%emt 0:00:29]} Ra7 {[%emt 0:03:29]} (31... Rd8 $14) 32. Nb5 $1 $16 {[%emt 0:07:49] White has more active pieces. The black rooks are badly placed.} Rb7 {[%emt 0:01:17]} ({Better is} 32... Raa8) 33. Nxc7 $1 {[%emt 0:00:45]} Rcxc7 {[%emt 0:00:05]} 34. Qd2 {[%emt 0:01:26] Hoping for Rxb7.} Rxb2 {[%emt 0:01:15]} (34... Ra7 $16) 35. Rxb2 $18 {[%emt 0:00:10]} (35. Qxb2 Nf6 36. Qb6 Ra7 37. Qb8+ Kg7) 35... Ra7 {[%emt 0:00:12]} 36. Rb8 {[%emt 0:01:14]} Kg7 {[%emt 0:00:43] [#]} 37. Qb2 $1 {[%emt 0:00:20]} Nf6 {[%emt 0:00:54]} 38. Qb6 {[%emt 0:01:55]} Rc7 $2 {[%emt 0:00:23]} (38... Ng4 39. Be2 Nh6) 39. Qxa5 {[%emt 0:01:46]} Ra7 {[%emt 0:00:17] Black is weak on the dark squares} 40. Ba6 $2 {[%emt 0:03:43]} ({White has to play} 40. Qb4 $18) 40... Qe7 $11 {[%emt 0:00:21]} 41. Qb6 {[%emt 0:00:07]} Qe4+ $2 {[%emt 0:00:41]} (41... f4 $1 $11 {and Black stays safe.} 42. gxf4 (42. exf4 Qe4+ 43. f3 Qc2+ 44. Kh3 Qd1 $11) 42... Ng4) 42. Kg1 $18 {[%emt 0:00:12]} f4 $2 {[%emt 0:00:51] [#]} (42... Re7) 43. Qd8 $1 {[%emt 0:06:46][%csl Gb8][%cal Rd8h8]} Nh7 {[%emt 0:00:02] Threatens to win with ...fxg3.} (43... Qe8 44. Qxe8) 44. Qg8+ $2 {[%emt 0:01:21]} ({White should try} 44. Qh8+ $18 Kh6 45. exf4) 44... Kh6 $15 {[%emt 0:00:08][%mdl 1024] Black has compensation.} 45. Ra8 $2 {Weighted Error Value: White=0.31/Black=0.40} (45. Rf8 $1 $15 Qb1+ 46. Kg2 Qe4+ 47. Kg1 Qb1+ 48. Bf1 Nxf8 49. Qxf8+ Kh7 50. gxf4) 1/2-1/2

[Event "SixDays Budapest May IM 2023"]
[Site "Budapest"]
[Date "2023.05.29"]
[Round "4.1"]
[White "Szeberenyi, Adam"]
[Black "Horvath, David"]
[Result "1/2-1/2"]
[Annotator "TA"]
[ECO "A39"]
[WhiteElo "2338"]
[BlackElo "2362"]
[PlyCount "38"]
[EventDate "2023.05.25"]
[EventType "tourn"]
[EventCountry "HUN"]
[SourceTitle "playchess.com"]
[Source "ChessBase"]
[SourceQuality "1"]
[TimeControl "5400+30"]

{[%evp 19,20,33,31]} 1. c4 {[%emt 0:00:37]} c5 {[%emt 0:00:36]} 2. Nc3 {[%emt 0:00:04]} Nc6 {[%emt 0:00:04]} 3. g3 {[%emt 0:00:05]} g6 {[%emt 0:00:03]} 4. Bg2 {[%emt 0:00:03]} Bg7 {[%emt 0:00:03]} 5. Nf3 {[%emt 0:00:04]} Nf6 {[%emt 0:00:11]} 6. O-O {[%emt 0:00:05]} O-O {[%emt 0:00:04]} 7. d4 {[%emt 0:00:03]} cxd4 {[%emt 0:00:05]} 8. Nxd4 {[%emt 0:00:02]} Nxd4 {[%emt 0:00:07]} 9. Qxd4 {[%emt 0:00:04]} d6 {[%emt 0:00:04]} 10. Qd3 {[%emt 0:00:05]} a6 {[#]} {Predecessor:} 11. Rd1 $146 {A39: Symmetrical English vs ...g6: 4 Bg2 Bg7 5 Nf3 Nf6 6 0-0 0-0 7 d4.} Bf5 12. Qd2 Rb8 13. Qe1 Qc7 14. b3 b5 15. cxb5 axb5 16. Bb2 b4 17. Na4 Rfc8 18. Rac1 Qa5 19. Rxc8+ Rxc8 {½-½ Abdusattorov,N (2661)-Andreikin,D (2729) Titled Tuesday intern op 17th May Early blitz 2022 (7)} 1/2-1/2